fUST/lending_fUST_20250503
["ID","MTS","AMOUNT","RATE_DAILY","PERIOD"]
[359640743,1746207048504,-563.7,0.00019178,2]
[359640744,1746207048515,-501.02764383,0.00019178,2]
[359640745,1746207048526,-400.0,0.00019178,2]
[359640746,1746207048536,-500.0,0.00019178,2]
[359640747,1746207048547,-400.0,0.00019178,2]
[359640748,1746207048558,-400.0,0.00019178,2]
[359640749,1746207048571,-400.0,0.00019178,2]
[359640750,1746207048582,-400.0,0.00019178,2]
[359640751,1746207048592,-505.63193085,0.00019178,2]
[359640752,1746207048603,-400.0,0.00019178,2]
[359640753,1746207048613,-500.0,0.00019178,2]
[359640754,1746207048624,-525.12773218,0.00019178,2]
[359640755,1746207048634,-500.0,0.00019178,2]
[359640756,1746207048645,-521.47,0.00019178,2]
[359640757,1746207048655,-414.96,0.00019178,2]
[359640758,1746207048666,-433.9,0.00019178,2]
[359640759,1746207048677,-400.0,0.00019178,2]
[359640760,1746207048687,-400.0,0.00019178,2]
[359640761,1746207048698,-500.0,0.00019178,2]
[359640762,1746207048709,-400.0,0.00019178,2]
[359640763,1746207048719,-400.0,0.00019178,2]
[359640764,1746207048729,-784.86,0.00019178,2]
[359640765,1746207048740,-300.0,0.00019178,2]
[359640766,1746207048750,-400.0,0.00019178,2]
[359640767,1746207048760,-713.75,0.00019178,2]
[359640768,1746207048771,-400.0,0.00019178,2]
[359640769,1746207048781,-400.0,0.00019178,2]
[359640770,1746207048791,-400.0,0.00019178,2]
[359640771,1746207048801,-500.0,0.00019178,2]
[359640772,1746207048812,-920.91,0.00019178,2]
[359640773,1746207048822,-500.0,0.00019178,2]
[359640774,1746207048833,-500.0,0.00019178,2]
[359640775,1746207048844,-459.1184224,0.00019178,2]
[359640776,1746207048854,-300.0,0.00019178,2]
[359640777,1746207048865,-400.0,0.00019178,2]
[359640778,1746207048876,-400.0,0.00019178,2]
[359640779,1746207048886,-400.0,0.00019178,2]
[359640780,1746207048898,-300.0,0.00019178,2]
[359640781,1746207048909,-500.0,0.00019178,2]
[359640782,1746207048919,-400.0,0.00019178,2]
[359640783,1746207048930,-500.0,0.00019178,2]
[359640784,1746207048941,-400.0,0.00019178,2]
[359640785,1746207048951,-500.0,0.00019178,2]
[359640786,1746207048962,-483.64,0.00019178,2]
[359640787,1746207048973,-400.0,0.00019178,2]
[359640788,1746207048983,-500.0,0.00019178,2]
[359640789,1746207048994,-400.0,0.00019178,2]
[359640790,1746207049004,-1690.89,0.00019178,2]
[359640791,1746207049015,-400.0,0.00019178,2]
[359640792,1746207049025,-536.31678895,0.00019178,2]
[359640793,1746207049036,-500.62427233,0.00019178,2]
[359640794,1746207049047,-400.0,0.00019178,2]
[359640795,1746207049057,-500.86131784,0.00019178,2]
[359640796,1746207049070,-500.0,0.00019178,2]
[359640797,1746207049081,-310.69512936,0.00019178,2]
[359640798,1746207049091,-500.0,0.00019178,2]
[359640799,1746207049102,-502.38133378,0.00019178,2]
[359640800,1746207049112,-400.0,0.00019178,2]
[359640801,1746207049123,-500.0,0.00019178,2]
[359640802,1746207049133,-400.0,0.00019178,2]
[359640803,1746207049144,-400.0,0.00019178,2]
[359640804,1746207049155,-400.0,0.00019178,2]
[359640805,1746207049166,-500.0,0.00019178,2]
[359640806,1746207049177,-481.85,0.00019178,2]
[359640807,1746207049188,-500.0,0.00019178,2]
[359640808,1746207049198,-400.0,0.00019178,2]
[359640809,1746207049209,-500.0,0.00019178,2]
[359640810,1746207049219,-500.0,0.00019178,2]
[359640811,1746207049231,-400.0,0.00019178,2]
[359640812,1746207049241,-500.0,0.00019178,2]
[359640813,1746207049251,-500.0,0.00019178,2]
[359640814,1746207049262,-500.0,0.00019178,2]
[359640815,1746207049273,-500.0,0.00019178,2]
[359640816,1746207049284,-400.0,0.00019178,2]
[359640817,1746207049295,-506.66851744,0.00019178,2]
[359640818,1746207049305,-427.32,0.00019178,2]
[359640819,1746207049317,-791.2,0.00019178,2]
[359640820,1746207049330,-400.0,0.00019178,2]
[359640821,1746207049341,-500.0,0.00019178,2]
[359640822,1746207049352,-400.0,0.00019178,2]
[359640823,1746207049363,-500.0,0.00019178,2]
[359640824,1746207049374,-1118.8,0.00019178,2]
[359640825,1746207049385,-500.0,0.00019178,2]
[359640826,1746207049396,-502.70610348,0.00019178,2]
[359640827,1746207049407,-670.25,0.00019178,2]
[359640828,1746207049418,-400.0,0.00019178,2]
[359640829,1746207049429,-500.0,0.00019178,2]
[359640830,1746207049747,-400.0,0.00019178,2]
[359640831,1746207049768,-500.0,0.00019178,2]
[359640832,1746207049781,-226.07320203,0.00019178,2]
[359640833,1746207049792,-500.0,0.00019178,2]
[359640834,1746207049802,-500.0,0.00019178,2]
[359640835,1746207049812,-500.0,0.00019178,2]
[359640836,1746207049823,-500.0,0.00019178,2]
[359640837,1746207049832,-429.00759419,0.00019178,2]
[359640838,1746207049842,-500.0,0.00019178,2]
[359640839,1746207049851,-467.65,0.00019178,2]
[359640840,1746207049861,-500.0,0.00019178,2]
[359640841,1746207049870,-400.0,0.00019178,2]
[359640842,1746207049880,-500.0,0.00019178,2]
[359640843,1746207049889,-1144.77,0.00019178,2]
[359640844,1746207049899,-429.15,0.00019178,2]
[359640845,1746207049908,-566.08,0.00019178,2]
[359640846,1746207049918,-850.21,0.00019178,2]
[359640847,1746207049928,-400.0,0.00019178,2]
[359640848,1746207049938,-715.55,0.00019178,2]
[359640849,1746207049948,-500.0,0.00019178,2]
[359640850,1746207049958,-151.0,0.00019178,2]
[359640851,1746207049967,-184.68721416,0.00019178,2]
[359640852,1746207049977,-400.0,0.00019178,2]
[359640853,1746207049987,-216.67517715,0.00019178,2]
[359640854,1746207049996,-829.02,0.00019178,2]
[359640855,1746207050006,-1072.75,0.00019178,2]
[359640856,1746207050016,-400.0,0.00019178,2]
[359640857,1746207050025,-400.0,0.00019178,2]
[359640858,1746207050035,-400.0,0.00019178,2]
[359640859,1746207050044,-444.362446,0.00019178,2]
[359640860,1746207050054,-400.0,0.00019178,2]
[359640861,1746207050064,-3656.56,0.00019178,2]
[359640862,1746207050074,-2014.33,0.00019178,2]
[359640863,1746207050084,-967.07,0.00019178,2]
[359640864,1746207050094,-400.0,0.00019178,2]
[359640865,1746207050103,-400.0,0.00019178,2]
[359640866,1746207050113,-1524.08,0.00019178,2]
[359640867,1746207050122,-400.0,0.00019178,2]
[359640868,1746207050131,-413.04,0.00019178,2]
[359640869,1746207050140,-555.48,0.00019178,2]
[359640870,1746207050150,-2425.0,0.00019178,2]
[359640871,1746207050159,-485.77,0.00019178,2]
[359640872,1746207050169,-1955.57,0.00019178,2]
[359640873,1746207050179,-400.0,0.00019178,2]
[359640874,1746207050188,-802.1,0.00019178,2]
[359640875,1746207050197,-1573.69,0.00019178,2]
[359640876,1746207050207,-400.0,0.00019178,2]
[359640877,1746207050216,-1074.77,0.00019178,2]
[359640878,1746207050225,-400.0,0.00019178,2]
[359640879,1746207050235,-400.0,0.00019178,2]
[359640880,1746207050244,-400.0,0.00019178,2]
[359640881,1746207050253,-400.0,0.00019178,2]
[359640882,1746207050262,-400.0,0.00019178,2]
[359640883,1746207050272,-400.0,0.00019178,2]
[359640884,1746207050281,-573.22,0.00019178,2]
[359640885,1746207050291,-400.0,0.00019178,2]
[359640886,1746207050300,-400.0,0.00019178,2]
[359640887,1746207050310,-1351.34,0.00019178,2]
[359640888,1746207050322,-151.0,0.00019178,2]
[359640889,1746207050333,-984.51,0.00019178,2]
[359640890,1746207050343,-249.73585642,0.00019178,2]
[359640891,1746207050352,-696.7,0.00019178,2]
[359640892,1746207050363,-1160.64,0.00019178,2]
[359640893,1746207050372,-400.0,0.00019178,2]
[359640894,1746207050382,-500.0,0.00019178,2]
[359640895,1746207050391,-3331.51,0.00019178,2]
[359640896,1746207050401,-400.0,0.00019178,2]
[359640897,1746207050411,-500.0,0.00019178,2]
[359640898,1746207050420,-562.03,0.00019178,2]
[359640899,1746207050429,-499.19,0.00019178,2]
[359640900,1746207050438,-500.0,0.00019178,2]
[359640901,1746207050447,-1661.25,0.00019178,2]
[359640902,1746207050457,-151.0,0.00019178,2]
[359640903,1746207050466,-893.59,0.00019178,2]
[359640904,1746207050475,-1864.45,0.00019178,2]
[359640905,1746207050485,-2277.79,0.00019178,2]
[359640906,1746207050494,-500.0,0.00019178,2]
[359640907,1746207050505,-1609.41,0.00019178,2]
[359640908,1746207050515,-400.0,0.00019178,2]
[359640909,1746207050524,-400.0,0.00019178,2]
[359640910,1746207050534,-2017.12,0.00019178,2]
[359640911,1746207050543,-400.0,0.00019178,2]
[359640912,1746207050553,-5009.82,0.00019178,2]
[359640913,1746207050563,-400.0,0.00019178,2]
[359640914,1746207050573,-500.0,0.00019178,2]
[359640915,1746207050582,-400.0,0.00019178,2]
[359640916,1746207050592,-400.0,0.00019178,2]
[359640917,1746207050602,-500.0,0.00019178,2]
[359640918,1746207050612,-400.0,0.00019178,2]
[359640919,1746207050621,-500.0,0.00019178,2]
[359640920,1746207050631,-467.853092,0.00019178,2]
[359640921,1746207050640,-467.853092,0.00019178,2]
[359640922,1746207050649,-500.0,0.00019178,2]
[359640923,1746207050659,-467.853092,0.00019178,2]
[359640924,1746207050668,-467.853092,0.00019178,2]
[359640925,1746207050677,-151.0,0.00019178,2]
[359640926,1746207050686,-467.853092,0.00019178,2]
[359640927,1746207050697,-567.63,0.00019178,2]
[359640928,1746207050706,-467.853092,0.00019178,2]
[359640929,1746207050716,-467.853092,0.00019178,2]
[359640930,1746207050726,-467.853092,0.00019178,2]
[359640931,1746207050735,-400.0,0.00019178,2]
[359640932,1746207050744,-434.42,0.00019178,2]
[359640933,1746207050754,-491.29,0.00019178,2]
[359640934,1746207050763,-1518.79,0.00019178,2]
[359640935,1746207050773,-200.0,0.00019178,2]
[359640936,1746207050782,-1154.11,0.00019178,2]
[359640937,1746207050792,-1796.67,0.00019178,2]
[359640938,1746207050801,-1437.24,0.00019178,2]
[359640939,1746207050811,-400.0,0.00019178,2]
[359640940,1746207050821,-300.0,0.00019178,2]
[359640941,1746207050831,-579.25,0.00019178,2]
[359640942,1746207050840,-400.0,0.00019178,2]
[359640943,1746207050850,-892.48,0.00019178,2]
[359640944,1746207050859,-1212.89,0.00019178,2]
[359640945,1746207050869,-560.97,0.00019178,2]
[359640946,1746207050878,-641.4,0.00019178,2]
[359640947,1746207050888,-788.03,0.00019178,2]
[359640948,1746207050898,-1602.8,0.00019178,2]
[359640949,1746207050907,-1825.77,0.00019178,2]
[359640950,1746207050917,-657.51,0.00019178,2]
[359640951,1746207050927,-3806.17,0.00019178,2]
[359640952,1746207050937,-427.18,0.00019178,2]
[359640953,1746207050947,-400.0,0.00019178,2]
[359640954,1746207050957,-870.46,0.00019178,2]
[359640955,1746207050966,-989.57,0.00019178,2]
[359640956,1746207050976,-650.71,0.00019178,2]
[359640957,1746207050986,-151.0,0.00019178,2]
[359640958,1746207050995,-400.0,0.00019178,2]
[359640959,1746207051005,-522.69,0.00019178,2]
[359640960,1746207051015,-1302.37,0.00019178,2]
[359640961,1746207051024,-447.45,0.00019178,2]
[359640962,1746207051034,-2009.29,0.00019178,2]
[359640963,1746207051044,-151.0,0.00019178,2]
[359640964,1746207051054,-500.0,0.00019178,2]
[359640965,1746207051063,-487.19,0.00019178,2]
[359640966,1746207051074,-480.37,0.00019178,2]
[359640967,1746207051083,-1350.89,0.00019178,2]
[359640968,1746207051094,-641.35,0.00019178,2]
[359640969,1746207051103,-178.87,0.00019178,2]
[359640970,1746207051113,-400.0,0.00019178,2]
[359640971,1746207051122,-400.0,0.00019178,2]
[359640972,1746207051133,-1476.17,0.00019178,2]
[359640973,1746207051143,-202.32431157,0.00019178,2]
[359640974,1746207051153,-1392.23,0.00019178,2]
[359640975,1746207051162,-1933.66,0.00019178,2]
[359640976,1746207051172,-400.0,0.00019178,2]
[359640977,1746207051182,-400.0,0.00019178,2]
[359640978,1746207051191,-400.0,0.00019178,2]
[359640979,1746207051200,-206.09787749,0.00019178,2]
[359640980,1746207051209,-400.0,0.00019178,2]
[359640981,1746207051219,-400.0,0.00019178,2]
[359640982,1746207051228,-897.25,0.00019178,2]
[359640983,1746207051238,-571.68,0.00019178,2]
[359640984,1746207051247,-400.0,0.00019178,2]
[359640985,1746207051256,-439.48,0.00019178,2]
[359640986,1746207051266,-400.0,0.00019178,2]
[359640987,1746207051275,-200.0,0.00019178,2]
[359640988,1746207051284,-500.04,0.00019178,2]
[359640989,1746207051294,-400.0,0.00019178,2]
[359640990,1746207051304,-400.0,0.00019178,2]
[359640991,1746207051314,-400.0,0.00019178,2]
[359640992,1746207051327,-400.0,0.00019178,2]
[359640993,1746207051337,-896.11,0.00019178,2]
[359640994,1746207051346,-10957.53,0.00019178,2]
[359640995,1746207051356,-503.52,0.00019178,2]
[359640996,1746207051365,-445.07,0.00019178,2]
[359640997,1746207051374,-400.0,0.00019178,2]
[359640998,1746207051384,-400.0,0.00019178,2]
[359640999,1746207051393,-400.0,0.00019178,2]
[359641000,1746207051403,-1332.54,0.00019178,2]
[359641001,1746207051412,-400.0,0.00019178,2]
[359641002,1746207051421,-858.54,0.00019178,2]
[359641003,1746207051431,-400.0,0.00019178,2]
[359641004,1746207051440,-400.0,0.00019178,2]
[359641005,1746207051449,-400.0,0.00019178,2]
[359641006,1746207051458,-400.0,0.00019178,2]
[359641007,1746207051468,-400.0,0.00019178,2]
[359641008,1746207051478,-400.0,0.00019178,2]
[359641009,1746207051487,-4403.27,0.00019178,2]
[359641010,1746207051497,-400.0,0.00019178,2]
[359641011,1746207051506,-400.0,0.00019178,2]
[359641012,1746207051516,-400.0,0.00019178,2]
[359641013,1746207051525,-506.9294292,0.00019178,2]
[359641014,1746207051535,-400.0,0.00019178,2]
[359641015,1746207051545,-400.0,0.00019178,2]
[359641016,1746207051555,-400.0,0.00019178,2]
[359641017,1746207051564,-302.3224736,0.00019178,2]
[359641018,1746207051573,-470.4,0.00019178,2]
[359641019,1746207051583,-644.61,0.00019178,2]
[359641020,1746207051592,-400.0,0.00019178,2]
[359641021,1746207051602,-469.03,0.00019178,2]
[359641022,1746207051611,-1617.65,0.00019178,2]
[359641023,1746207051621,-500.0,0.00019178,2]
[359641024,1746207051630,-205.271268,0.00019178,2]
[359641025,1746207051640,-300.0,0.00019178,2]
[359641026,1746207051650,-152.0,0.00019207,2]
[359641027,1746207051659,-1240.9,0.00019214,3]
[359641028,1746207051669,-502.0,0.00019239,2]
[359641029,1746207051678,-707.0,0.0001924,2]
[359641030,1746207051688,-2244.0,0.0001924,2]
[359641031,1746207051697,-403.0,0.0001924,2]
[359641032,1746207051706,-545.0,0.0001924,2]
[359641033,1746207051716,-160.0,0.00019314,2]
[359641034,1746207051726,-160.0,0.00019314,2]
[359641035,1746207051736,-160.0,0.00019314,2]
[359641036,1746207051746,-160.0,0.00019314,2]
[359641037,1746207051756,-467.853092,0.00019329,2]
[359641038,1746207051766,-467.853092,0.00019329,2]
[359641039,1746207051776,-362.1083304,0.00019342,2]
[359641040,1746207051785,-362.1083304,0.00019342,2]
[359641041,1746207051795,-362.1083304,0.00019342,2]
[359641042,1746207051804,-361.74418,0.00019342,2]
[359641043,1746207051815,-179.92802879,0.0001936,2]
[359641044,1746207051827,-1853.70867237,0.00019406,2]
[359641045,1746207051837,-462.74,0.00019424,2]
[359641046,1746207051847,-182.12647014,0.00019446,3]
[359641047,1746207051856,-12598.98820072,0.00019446,3]
[359641048,1746207051866,-841.31989156,0.00019446,3]
[359641049,1746207051876,-160.0,0.00019448,3]
[359641050,1746207051886,-500.0,0.00019452,2]
[359641051,1746207051895,-151.0,0.00019452,2]
[359641052,1746207051905,-151.0,0.00019452,2]
[359641053,1746207051915,-500.0,0.00019452,2]
[359641054,1746207051924,-500.0,0.00019452,2]
[359641055,1746207051934,-151.0,0.00019452,2]
[359641056,1746207051943,-500.0,0.00019452,2]
[359641057,1746207051953,-500.0,0.00019452,2]
[359641058,1746207051963,-500.0,0.00019452,2]
[359641059,1746207051973,-603.12251118,0.00019452,2]
[359641060,1746207051982,-200.19939098,0.00019452,2]
[359641061,1746207051992,-253.32392144,0.00019452,2]
[359641062,1746207052001,-151.0,0.00019452,2]
[359641063,1746207052011,-500.0,0.00019452,2]
[359641064,1746207052020,-469.50639944,0.00019452,2]
[359641065,1746207052030,-546.88309811,0.00019452,2]
[359641066,1746207052041,-400.0,0.00019452,2]
[359641067,1746207052051,-500.0,0.00019452,2]
[359641068,1746207052061,-151.0,0.00019452,2]
[359641069,1746207052072,-282.86561104,0.00019452,2]
[359641070,1746207052082,-224.2108023,0.00019452,2]
[359641071,1746207052092,-400.0,0.00019452,2]
[359641072,1746207052102,-623.62,0.00019452,2]
[359641073,1746207052112,-438.74,0.00019452,2]
[359641074,1746207052123,-400.0,0.00019452,2]
[359641075,1746207052132,-400.0,0.00019452,2]
[359641076,1746207052142,-572.97,0.00019452,2]
[359641077,1746207052152,-400.0,0.00019452,2]
[359641078,1746207052162,-400.0,0.00019452,2]
[359641079,1746207052172,-400.0,0.00019452,2]
[359641080,1746207052183,-400.0,0.00019452,2]
[359641081,1746207052192,-699.26,0.00019452,2]
[359641082,1746207052202,-224.45288229,0.00019452,2]
[359641083,1746207052212,-500.0,0.00019452,2]
[359641084,1746207052222,-400.0,0.00019452,2]
[359641085,1746207052231,-400.0,0.00019452,2]
[359641086,1746207052241,-151.0,0.00019452,2]
[359641087,1746207052251,-405.42,0.00019452,2]
[359641088,1746207052260,-257.79157703,0.00019452,2]
[359641089,1746207052270,-400.0,0.00019452,2]
[359641090,1746207052280,-400.0,0.00019452,2]
[359641091,1746207052290,-400.0,0.00019452,2]
[359641092,1746207052300,-400.0,0.00019452,2]
[359641093,1746207052309,-400.0,0.00019452,2]
[359641094,1746207052322,-634.13,0.00019452,2]
[359641095,1746207052331,-400.0,0.00019452,2]
[359641096,1746207052341,-400.0,0.00019452,2]
[359641097,1746207052350,-400.0,0.00019452,2]
[359641098,1746207052360,-400.0,0.00019452,2]
[359641099,1746207052371,-624.62,0.00019452,2]
[359641100,1746207052380,-400.0,0.00019452,2]
[359641101,1746207052389,-400.0,0.00019452,2]
[359641102,1746207052400,-400.0,0.00019452,2]
[359641103,1746207052410,-434.0,0.00019452,2]
[359641104,1746207052419,-445.05,0.00019452,2]
[359641105,1746207052429,-400.0,0.00019452,2]
[359641106,1746207052439,-400.0,0.00019452,2]
[359641107,1746207052448,-400.0,0.00019452,2]
[359641108,1746207052458,-400.0,0.00019452,2]
[359641109,1746207052468,-691.83,0.00019452,2]
[359641110,1746207052478,-400.0,0.00019452,2]
[359641111,1746207052487,-400.0,0.00019452,2]
[359641112,1746207052497,-400.0,0.00019452,2]
[359641113,1746207052506,-400.0,0.00019452,2]
[359641114,1746207052516,-400.0,0.00019452,2]
[359641115,1746207052526,-400.0,0.00019452,2]
[359641116,1746207052536,-561.14,0.00019452,2]
[359641117,1746207052545,-400.0,0.00019452,2]
[359641118,1746207052554,-400.0,0.00019452,2]
[359641119,1746207052565,-245.0,0.00019452,2]
[359641120,1746207052574,-400.0,0.00019452,2]
[359641121,1746207052584,-151.0,0.00019452,2]
[359641122,1746207052594,-531.51927669,0.00019452,2]
[359641123,1746207052603,-151.0,0.00019452,2]
[359641124,1746207052613,-400.0,0.00019452,2]
[359641125,1746207052622,-400.0,0.00019452,2]
[359641126,1746207052632,-563.7,0.00019452,2]
[359641127,1746207052642,-400.0,0.00019452,2]
[359641128,1746207052651,-521.47,0.00019452,2]
[359641129,1746207052660,-414.96,0.00019452,2]
[359641130,1746207052670,-433.9,0.00019452,2]
[359641131,1746207052679,-400.0,0.00019452,2]
[359641132,1746207052689,-400.0,0.00019452,2]
[359641133,1746207052698,-784.86,0.00019452,2]
[359641134,1746207052708,-713.75,0.00019452,2]
[359641135,1746207052718,-400.0,0.00019452,2]
[359641136,1746207052727,-400.0,0.00019452,2]
[359641137,1746207052737,-920.91,0.00019452,2]
[359641138,1746207052746,-400.0,0.00019452,2]
[359641139,1746207052756,-400.0,0.00019452,2]
[359641140,1746207052766,-400.0,0.00019452,2]
[359641141,1746207052775,-400.0,0.00019452,2]
[359641142,1746207052785,-483.64,0.00019452,2]
[359641143,1746207052794,-258.10617217,0.00019452,2]
[359641190,1746208232269,-1606.10828486,0.000189,2]
[359641191,1746208232280,-1173.64229843,0.00019061,2]
[359641192,1746208232290,-300.0,0.00019159,2]
[359641193,1746208232300,-300.0,0.0001916,2]
[359641194,1746208232310,-505.88198122,0.00019161,2]
[359641195,1746208232320,-505.88198122,0.00019161,2]
[359641196,1746208232331,-505.88198122,0.00019161,2]
[359641197,1746208232341,-505.88198122,0.00019161,2]
[359641198,1746208232351,-505.88198122,0.00019161,2]
[359641199,1746208232362,-505.88198122,0.00019161,2]
[359641200,1746208232373,-505.88198122,0.00019161,2]
[359641201,1746208232384,-505.88198122,0.00019161,2]
[359641203,1746208232395,-505.88198122,0.00019161,2]
[359641205,1746208232405,-505.88198122,0.00019161,2]
[359641206,1746208232415,-505.88198122,0.00019161,2]
[359641207,1746208232425,-505.88198122,0.00019161,2]
[359641208,1746208232436,-505.88198122,0.00019161,2]
[359641209,1746208232445,-505.88198122,0.00019161,2]
[359641210,1746208232455,-505.88198122,0.00019161,2]
[359641211,1746208232466,-505.88198122,0.00019161,2]
[359641212,1746208232477,-505.88198122,0.00019161,2]
[359641213,1746208232487,-505.88198122,0.00019161,2]
[359641214,1746208232497,-505.88198122,0.00019161,2]
[359641215,1746208232507,-505.88198122,0.00019161,2]
[359641216,1746208232517,-505.88198122,0.00019161,2]
[359641217,1746208232527,-505.88198122,0.00019161,2]
[359641218,1746208232537,-505.88198122,0.00019161,2]
[359641219,1746208232547,-505.88198122,0.00019161,2]
[359641220,1746208232557,-505.88198122,0.00019161,2]
[359641221,1746208232566,-505.88198122,0.00019161,2]
[359641222,1746208232578,-505.88198122,0.00019161,2]
[359641223,1746208232588,-505.88198122,0.00019161,2]
[359641224,1746208232598,-505.88198122,0.00019161,2]
[359641225,1746208232608,-505.88198122,0.00019161,2]
[359641226,1746208232618,-505.88198122,0.00019161,2]
[359641227,1746208232628,-505.88198122,0.00019161,2]
[359641228,1746208232638,-505.88198122,0.00019161,2]
[359641229,1746208232648,-505.88198122,0.00019161,2]
[359641230,1746208232658,-505.88198122,0.00019161,2]
[359641231,1746208232668,-3.95382915,0.00019161,2]
[359641232,1746208232723,-274.80887232,0.0001916,2]
[359641233,1746208232735,-501.92815207,0.00019161,2]
[359641234,1746208232746,-505.88198122,0.00019161,2]
[359641235,1746208232755,-505.88198122,0.00019161,2]
[359641236,1746208232765,-505.88198122,0.00019161,2]
[359641237,1746208232775,-505.88198122,0.00019161,2]
[359641238,1746208232786,-505.88198122,0.00019161,2]
[359641239,1746208232796,-505.88198122,0.00019161,2]
[359641240,1746208232806,-505.88198122,0.00019161,2]
[359641241,1746208232818,-505.88198122,0.00019161,2]
[359641242,1746208232828,-505.88198122,0.00019161,2]
[359641243,1746208232838,-505.88198122,0.00019161,2]
[359641244,1746208232848,-505.88198122,0.00019161,2]
[359641245,1746208232858,-505.88198122,0.00019161,2]
[359641246,1746208232869,-505.88198122,0.00019161,2]
[359641247,1746208232879,-505.88198122,0.00019161,2]
[359641248,1746208232888,-505.88198122,0.00019161,2]
[359641249,1746208232899,-505.88198122,0.00019161,2]
[359641250,1746208232908,-505.88198122,0.00019161,2]
[359641251,1746208232918,-505.88198122,0.00019161,2]
[359641252,1746208232927,-505.88198122,0.00019161,2]
[359641253,1746208232938,-505.88198122,0.00019161,2]
[359641254,1746208232947,-505.88198122,0.00019161,2]
[359641255,1746208232957,-505.88198122,0.00019161,2]
[359641256,1746208232967,-505.88198122,0.00019161,2]
[359641257,1746208232976,-505.88198122,0.00019161,2]
[359641258,1746208232986,-505.88198122,0.00019161,2]
[359641259,1746208232996,-505.88198122,0.00019161,2]
[359641260,1746208233006,-1446.24343654,0.00019161,2]
[359641261,1746208233015,-1446.24343654,0.00019161,2]
[359641262,1746208233025,-1446.24343654,0.00019161,2]
[359641263,1746208233035,-1446.24343654,0.00019161,2]
[359641264,1746208233045,-1446.24343654,0.00019161,2]
[359641265,1746208233054,-1446.24343654,0.00019161,2]
[359641266,1746208233063,-1446.24343654,0.00019161,2]
[359641267,1746208233074,-1446.24343654,0.00019161,2]
[359641268,1746208233083,-27.86332553,0.00019161,2]
[359641471,1746208462032,1099.64318377,0.00016007,2]
[359641501,1746209432422,-1070.73885658,0.000189,2]
[359641502,1746209432432,-1026.9370111,0.00019051,2]
[359641503,1746209432442,-154.36259486,0.00019078,2]
[359641504,1746209432452,-300.0,0.00019149,2]
[359641505,1746209432461,-2731.42975174,0.00019152,2]
[359641506,1746209432471,-259.12,0.00019168,3]
[359641507,1746209432480,-160.68647062,0.00019168,3]
[359641508,1746209432492,-316.63352938,0.00019168,3]
[359641509,1746209432514,-238.66,0.00019168,3]
[359641510,1746209432524,-480.20647062,0.00019168,3]
[359641512,1746209432536,-235.77352938,0.00019168,3]
[359641514,1746209432546,-192.36621062,0.00019177,2]
[359641516,1746209432555,-427.10246754,0.00019178,2]
[359641519,1746209432567,-367.36753246,0.00019178,2]
[359641521,1746209432577,-685.73,0.00019178,2]
[359641523,1746209432587,-151.0,0.00019178,2]
[359641525,1746209432596,-151.0,0.00019178,2]
[359641527,1746209432606,-400.0,0.00019178,2]
[359641529,1746209432615,-400.0,0.00019178,2]
[359641531,1746209432625,-400.0,0.00019178,2]
[359641532,1746209432636,-856.35,0.00019178,2]